Cogmind - Beta 15 @@@ ROGUE MODE // 2025.08.03 @ 16:50:10 Player: Phosphophyllite Result: Self-destructed Performance ------------- Evolutions (1) 500 Regions Visited (3) 600 Robots Destroyed (24) 120 Value Destroyed (346) 346 Prototype IDs (0) 0 Alien Tech Used (0) 0 Bonus (0) 0 TOTAL SCORE: 1566 Bonus ------- None Cogmind --------- Core Integrity 400/400 Matter 249/300 Energy 124/125 System Corruption 0% Temperature Cool (3) Movement Flying (34) Location -9/Materials Parts ------- > --- POWER (1) -------- Light Ion Engine > --- PROPULSION (3) --- Flight Unit Flight Unit Flight Unit > --- UTILITY (3) ------ Small Storage Unit > --- WEAPON (2) ------- Light Assault Rifle Light Assault Rifle > --- INVENTORY (8) ---- Light Ion Engine Light Treads Light Treads Improved Hover Unit Light Armor Plating Beam Cannon Light Assault Rifle Mining Claw Peak State ------------ > --- POWER ------------ Light Ion Engine > --- PROPULSION ------- Aluminum Leg Aluminum Leg > --- UTILITY ---------- Small Storage Unit Seismic Detector > --- WEAPON ----------- Medium Laser Medium Laser > --- INVENTORY -------- Light Ion Engine Light Treads Light Treads Compact Wheel Improved Terrain Scanner Light Armor Plating Medium Laser Mining Laser [Rating: 8] Favorites ----------- Power Light Ion Engine Engine Light Ion Engine Propulsion Aluminum Leg Leg Aluminum Leg Hover Unit Improved Hover Unit Flight Unit Flight Unit Utility Small Storage Unit Device Seismic Detector Storage Small Storage Unit Weapon Medium Laser Energy Gun Medium Laser Ballistic Gun Light Assault Rifle Build | -11 -10 -10 -9 ------- Run | Yrd Mat Min Mat Slots Evolved 2 | . . . 2 Power . | . . . . Propulsion 1 | . . . 1 Utility 1 | . . . 1 Weapon . | . . . . Parts Attached 19 | 7 2 8 2 Power 4 | 1 1 2 . Engine 4 | 1 1 2 . Core . | . . . . Reactor . | . . . . Propulsion 7 | 2 1 2 2 Treads . | . . . . Leg 3 | 2 1 . . Wheel . | . . . . Hover 1 | . . . 1 Flight 3 | . . 2 1 Utility 2 | 2 . . . Device 1 | 1 . . . Storage 1 | 1 . . . Processor . | . . . . Hackware . | . . . . Protection . | . . . . Artifact . | . . . . Weapon 6 | 2 . 4 . Energy Gun 3 | 2 . 1 . Energy Cannon . | . . . . Ballistic Gun 3 | . . 3 . Ballistic Cannon . | . . . . Launcher . | . . . . Special Weapon . | . . . . Impact Weapon . | . . . . Slashing Weapon . | . . . . Piercing Weapon . | . . . . Special Melee Weapon . | . . . . Unidentified Prototypes . | . . . . Parts Lost 6 | . 1 5 . Power 3 | . 1 2 . Propulsion 1 | . . 1 . Utility 1 | . . 1 . Weapon 1 | . . 1 . Highest Loss Streak 5 | . 1 5 . To Critical Strikes . | . . . . Average Backups 7 | 4 7 7 7 Power . | . 1 1 1 Propulsion 2 | 2 2 2 2 Utility 1 | . 1 1 1 Weapon 2 | . 2 2 3 Tool/Special . | . . . . Unused Backups 8 | . 2 1 5 Power 1 | . . . 1 Propulsion 3 | . 1 . 2 Utility 2 | . . 1 1 Weapon 2 | . 1 . 1 Tool/Special . | . . . . Average Slot Usage (%) 95 | . 99 90 77 Engine 13 | . 13 12 11 Leg 24 | . 28 21 . Flight 3 | . . 5 33 Device 11 | . 14 8 . Storage 13 | . 14 14 11 Energy Gun 24 | . 28 20 . Ballistic Gun 3 | . . 6 22 Peak Build Rating 8 | 7 8 8 8 Average Rating 7 | 5 7 6 7 On Entrance 5 | . 7 8 6 Naked Turns . | . . . . Heaviest Build 15 | 13 15 15 10 Greatest Support 20 | 20 20 20 12 Greatest Overweight (x) 1 | . . 1 . Average Overweight (x) . | . . . . Largest Inventory Capacity 8 | 8 8 8 8 Average Capacity 7 | 7 8 8 8 Most Carried 8 | 7 8 8 8 Average Carried 7 | 4 7 7 7 Final Capacity 8 | 8 8 8 8 Final Carried 8 | 7 8 8 8 Class Distribution -------------------- 93% | Mutant 6% | Scavenger-Mutant Dominant Class ---------------- Mutant | -10/Materials Mutant | -10/Mines Mutant | -9/Materials Resources | -11 -10 -10 -9 ----------- Run | Yrd Mat Min Mat Matter Collected 368 | 259 31 78 . Remotely . | . . . . Salvage Created 859 | 130 463 266 . Parts 42 | 15 13 14 . Haulers Intercepted 1 | . 1 . . Recyclers Shooed 7 | . 5 2 . Parts Field Recycled . | . . . . Retrieved Matter . | . . . . Parts Self-Destructed . | . . . . Prevented . | . . . . Kills | -11 -10 -10 -9 ------- Run | Yrd Mat Min Mat Combat Hostiles Destroyed 14 | . 6 8 . Guns 13 | . 5 8 . Classes Destroyed 5 | 2 3 . . Tunneler 4 | 4 . . . Hauler 1 | . 1 . . Recycler 5 | 1 3 1 . Swarmer 9 | . 3 6 . Grunt 5 | . 3 2 . Best Kill Streak 3 | 3 3 3 . Combat Bots Only 3 | . 3 3 . Max Kills in Single Turn 2 | 1 1 2 . Gunslinging 1 | . . 1 . Exploded . | . . . . Melee . | . . . . Uniques/NPCs Destroyed . | . . . . Combat | -11 -10 -10 -9 -------- Run | Yrd Mat Min Mat Hostile Shots Fired 103 | . 25 76 2 Missed 37 | . 9 26 2 Hits 66 | . 16 50 . Projectile 66 | . 16 50 . Damage Taken 642 | . 165 477 . Core 88 | . . 88 . Absorbed by Shields . | . . . . Core Remaining (%) 82 | 100 . 64 . Volleys Fired 75 | 12 35 28 . Largest 2 | 2 2 2 . Hottest 100 | 100 100 100 . Shots Fired 149 | 24 70 55 . Gun 149 | 24 70 55 . Cannon . | . . . . Launcher . | . . . . Special . | . . . . Kinetic 13 | . . 13 . Thermal 136 | 24 70 42 . Explosive . | . . . . Electromagnetic . | . . . . Robot Hit Streak 9 | 3 9 7 . Robot Miss Streak 12 | 5 5 12 . Penetration Max . | . . . . Secondary Targets 3 | . 1 2 . Max Gunslinging Chain 1 | . 1 1 . Shots Hit Robots 68 | 10 34 24 . Core Hits 37 | 6 17 14 . Critical Kills . | . . . . Critical Parts Destroyed . | . . . . Critical Strikes 8 | . 6 2 . Burn 8 | . 6 2 . Melee Attacks . | . . . . Impact . | . . . . Slashing . | . . . . Piercing . | . . . . Sneak Attacks . | . . . . Combat Hostiles . | . . . . Follow-up Attacks . | . . . . Damage Inflicted 905 | 127 434 344 . Guns 882 | 127 426 329 . Cannons . | . . . . Explosions . | . . . . Melee . | . . . . Ramming 23 | . 8 15 . Kinetic 55 | . . 55 . Thermal 827 | 127 426 274 . Explosive . | . . . . Electromagnetic . | . . . . Impact . | . . . . Slashing . | . . . . Piercing . | . . . . Highest Corruption . | . . . . Average Corruption . | . . . . Corruption Purged . | . . . . Corruption Blocked . | . . . . Overload Shots . | . . . . Overflow Damage . | . . . . Projectiles . | . . . . Explosions . | . . . . Melee . | . . . . Knockbacks . | . . . . Impact . | . . . . Kinetic . | . . . . Secondary . | . . . . Self-Inflicted Damage . | . . . . Shots . | . . . . Rammed . | . . . . Targets Rammed 4 | . 2 2 . Kicked 4 | . 2 2 . Crushed . | . . . . Highest Temperature 278 | 156 278 270 . Average Temperature 92 | 53 98 105 . Received Heat Transfer 147 | . 57 90 . Effects 1 | . . 1 . Energy Bleed 1 | . . 1 . Siege Activations . | . . . . Martial Activations . | . . . . Shielding Activations . | . . . . Robots Disrupted . | . . . . Combat Hostiles . | . . . . Robots Corrupted . | . . . . Combat Hostiles . | . . . . Parts Fried . | . . . . Impact Corruptions . | . . . . Robots Melted 2 | . 2 . . Combat Hostiles 1 | . 1 . . Parts Melted 7 | 1 2 4 . Heat Transferred 3034 | 370 1702 962 . Parts Sabotaged . | . . . . Parts Stolen . | . . . . Parts Stripped . | . . . . Power Chain Reactions . | . . . . Alert | -11 -10 -10 -9 ------- Run | Yrd Mat Min Mat Maximum Alert Level . | . . . . Low Security (%) 100 | 100 100 100 100 Level 1 . | . . . . Level 2 . | . . . . Level 3 . | . . . . Level 4 . | . . . . Level 5 . | . . . . High Security . | . . . . Max Security . | . . . . Peak Influence 100 | 10 100 60 17 Initial 16 | . . 16 13 Average 26 | 1 31 31 14 Influence Increases 480 | 25 246 195 14 Destroy 0b10 Robot/C 280 | . 120 160 . Destroy 0b10 Robot/NC 50 | 25 20 5 . Destroy Leader 62 | . 32 30 . Successful Hack 28 | . 14 . 14 Lose Combat Pursuer 60 | . 60 . . Influence Decreases 463 | 25 203 203 32 Entered New Map 49 | . . 27 22 Time Decay 358 | 25 193 130 10 Lost Part 56 | . 10 46 . Squads Dispatched 1 | . 1 . . Investigation . | . . . . Extermination . | . . . . Reinforcement 1 | . 1 . . Assault . | . . . . Garrison . | . . . . Intercept . | . . . . Searches Triggered . | . . . . Construction Impeded . | . . . . Haulers Reinforced . | . . . . Active Scanning Responses . | . . . . Cargo Convoy Interrupts . | . . . . Stealth | -11 -10 -10 -9 --------- Run | Yrd Mat Min Mat Distress Signals 1 | . 1 . . Communications Jammed . | . . . . Distress Signals . | . . . . Times Spotted 24 | . 12 8 4 Peak Tracking Total 8 | . 3 3 8 Tactical Retreats 2 | . 2 . . Traps | -11 -10 -10 -9 ------- Run | Yrd Mat Min Mat Traps Triggered . | . . . . Indirectly . | . . . . Trap Hack Attempts . | . . . . Triggered . | . . . . Disarmed . | . . . . Reprogrammed . | . . . . Reused . | . . . . Traps Extracted . | . . . . Installed . | . . . . Triggered . | . . . . Machines | -11 -10 -10 -9 ---------- Run | Yrd Mat Min Mat Machines Disabled . | . . . . Max in Single Turn . | . . . . Machines Repaired . | . . . . Machines Dismantled . | . . . . Machines Sabotaged . | . . . . Overloaded Fab Kills . | . . . . Hacking | -11 -10 -10 -9 --------- Run | Yrd Mat Min Mat Machines Accessed 2 | . 1 . 1 Terminals 2 | . 1 . 1 Fabricators . | . . . . Repair Stations . | . . . . Recycling Units . | . . . . Scanalyzers . | . . . . Garrison Access . | . . . . Total Hacks 5 | . 2 . 3 Successful 2 | . 1 . 1 Failed 3 | . 1 . 2 Catastrophic 2 | . 1 . 1 Database Lockouts . | . . . . Manual 5 | . 2 . 3 Terminals 5 | . 2 . 3 Fabricators . | . . . . Repair Stations . | . . . . Recycling Units . | . . . . Scanalyzers . | . . . . Garrison Access . | . . . . Terminal Hacks . | . . . . Fabricator Hacks . | . . . . Repair Station Hacks . | . . . . Recycling Unit Hacks . | . . . . Scanalyzer . | . . . . Garrison Access Hacks . | . . . . Unauthorized Hacks 2 | . 1 . 1 Terminals 2 | . 1 . 1 Botnet 2 | . 1 . 1 Fabricators . | . . . . Repair Stations . | . . . . Recycling Units . | . . . . Scanalyzers . | . . . . Garrison Access . | . . . . Data Cores Recovered . | . . . . Used . | . . . . Hacking Detections 2 | . 1 . 1 Full Trace Events . | . . . . Feedback Events . | . . . . Feedback Blocked . | . . . . Robot Schematics Acquired . | . . . . Robots Built . | . . . . Authchips . | . . . . Time . | . . . . Total Robot Build Rating . | . . . . Part Schematics Acquired . | . . . . Parts Built . | . . . . Authchips . | . . . . Time . | . . . . Total Part Build Rating . | . . . . Parts Repaired . | . . . . Time . | . . . . Parts Recycled . | . . . . Recycled Matter . | . . . . Retrieved Matter . | . . . . Retrieved Components . | . . . . Parts Scanalyzed . | . . . . Part Schematics Acquired . | . . . . Parts Damaged . | . . . . Bothacking | -11 -10 -10 -9 ------------ Run | Yrd Mat Min Mat Used RIF Installer . | . . . . Robots Hacked . | . . . . Non-combat . | . . . . Combat . | . . . . Robot Hacks Applied . | . . . . Relay Couplers Released . | . . . . Fabnet Peak Effective % . | . . . . Robots Rewired . | . . . . Allies Hacked . | . . . . Hacks Repelled . | . . . . Allies | -11 -10 -10 -9 -------- Run | Yrd Mat Min Mat Total Allies . | . . . . Largest Group . | . . . . Highest-Rated Group . | . . . . Highest-Rated Ally . | . . . . Total Orders . | . . . . Ally Attacks . | . . . . Total Damage . | . . . . Kills . | . . . . Allies Corrupted . | . . . . Allies Melted . | . . . . Intel | -11 -10 -10 -9 ------- Run | Yrd Mat Min Mat Active Infowar (turns) 723 | 22 544 157 . Seismic 723 | 22 544 157 . Robot Analysis Total . | . . . . Derelict Logs Recovered 1 | . . 1 . Drone Launches . | . . . . Drone Recoveries . | . . . . Exploration | -11 -10 -10 -9 ------------- Run | Yrd Mat Min Mat Turns Passed 993 | 156 544 266 27 Spaces Moved 636 | 83 359 132 62 Core 1 | 1 . . . Treads . | . . . . Legs 534 | 82 359 93 . Wheels . | . . . . Hover . | . . . . Flight 101 | . . 39 62 Fastest Speed 34 | 50 120 37 34 Average Speed 110 | 119 120 113 34 Slowest Speed 120 | 120 120 120 34 Overloaded Moves . | . . . . Propulsion Burnouts . | . . . . Robots Hopped . | . . . . Potential Cave-ins . | . . . . Cave-ins Triggered . | . . . . Exploration Rate (%) 27 | 6 58 34 11 Regions Visited 3 Branch Regions 1 Pre-discovered Areas 1 | . . 1 . Known Exits Taken . | . . . . Unknown Exits Taken 3 | 1 1 1 . Scrap Searched 1 | . . 1 . Spaces Dug . | . . . . Terrain Destroyed . | . . . . Melee . | . . . . Projectile . | . . . . AOE . | . . . . Terrain Rammed . | . . . . Walls Destroyed . | . . . . Machines Disabled . | . . . . Actions | -11 -10 -10 -9 --------- Run | Yrd Mat Min Mat Total 775 | 112 403 194 66 Wait 23 | 4 . 19 . Move 633 | 82 358 131 62 Hop . | . . . . Pick Up 11 | 7 3 1 . Fast Attach 12 | 7 1 4 . Attach 2 | . . 1 1 Detach 1 | . . 1 . Swap 8 | . 1 4 3 Drop 6 | . 3 3 . Fire 75 | 12 35 28 . Melee . | . . . . Ram . | . . . . Kick 4 | . 2 2 . Crush . | . . . . Escape Stasis . | . . . . Rewire . | . . . . Trap . | . . . . Miscellaneous . | . . . . Route ------- -11/Scrapyard -10/Materials (discovered 4 exits: *Mat / [*Min x2] / [*Sub]) -10/Mines (discovered 2 exits: *Mat x2) -9/Materials History --------- Turn | Location | Event 9 | -11/Scrapyard | Discovered new exit (range 14) 157 | -11/Scrapyard | Entered Materials 157 | -10/Materials | Discovered new exit (range 14) 305 | -10/Materials | Build established: Mutant 463 | -10/Materials | Discovered new exit (range 16) 582 | -10/Materials | Discovered new exit (range 5) 630 | -10/Materials | Discovered new exit (range 6) 657 | -10/Materials | Derelicts attacked the area 701 | -10/Materials | Entered Mines 704 | -10/Mines | Discovered new exit (range 10) 776 | -10/Mines | Learned location of Recycling (-8) 908 | -10/Mines | Discovered new exit (range 6) 922 | -10/Mines | Lost 5 parts (2p1n1u1w) 967 | -10/Mines | Entered Materials 967 | -9/Materials | Evolved 2 slots: Propulsion x1, Utility x1 994 | -9/Materials | Self-destructed Last Messages --------------- 00924_ Acquired 2 matter. 00925_ Acquired 9 matter. 00928_ Acquired Lgt. Ion Engine. 00932_ Dropped Imp. Terrain Scanner. 00938_ Acquired 12 matter. 00942_ R-06 Scavenger destroyed. 00953_ Acquired Flight Unit. 00955_ K-01 Serf cleans the Core Extractor. 00966_ R-06 Scavenger collects Imp. Terrain Scanner. PARAMETERS=PROPULSION+1,UTILITY+1 LOCATION=UNKNOWN GOAL=ESCAPE 00973_ Acquired Imp. Hover Unit. 00986_ Connecting with Terminal... 00986_ Current location identified: Materials >>Trojan(Botnet) Trojan loaded successfully. Testing... Terminal linked with 0 systems. Awaiting botnet instructions. Map ----- +----------------------------------------------------+ | ??????????# ## ##?????????????????? | | ??????????# """ ## #??????????????????? | | ??????????# """ ## #??????????????????? | | ??????????# """ ## #???#+#####????????? | | ??????????# ## #??? #????????? | | ??????????# ## #### #????????? | | ?????????########## #????????? | | ?????????# # #????????? | | ?????????# # "" ##+#????????? | | ?????????# # "" #???????????? | | ?????????# """ + T" #???????????? | | ?????????# """"" # "" #???????????? | | ??????????? """"" # "" #???????????? | | ??????????? """"" # #???????????? | | ???????????? """ # +???????????? | | ????????????? #!! [!! #???????????? | | ?????????????######!! [!! #???????????? | | ??????????????????#!! [!! #???????????? | | ??????????????????# #####???????? | | ?????????#?######## #???? | | ?????????# # ##### #???? | | ?????????# """ # ##"T"###???????????? | | ?????????# """ # ##"""#?????????????? | | ?????????# """ # ######?????????????? | | ?????????# + #??????????????????? | | ?????????# """ @# ???????????? | | ?????????# """ # ???????? | | ?????????# """ # ????????? | | ?????????# #######+######+????????? | | ??????????#########??????? ?????????????? | | ??????????????????????????? ????????????? | | ???????????????????????????? #???????????? | | ?????????????????????????????#???????????? | | ?????????????????????????????????????????? | | ?????????????????????????????????????????? | | ?????????????????????????????????????????? | | ?????????????????????????????????????????? | | ?????????????????????????????????????????? | | ?????????????????????????????????????????? | | ?????????????????????????????????????????? | | ?????????????????????????????????????????? | | ?????????????????????????????????????????? | | ?????????????????????????????????????????? | | ?????????????????????????????????????????? | | ?????????????????????????????????????????? | | ?????????????????????????????????????????? | | ?????????????????????????????????????????? | | ?????????????????????????????????????????? | | ?????????????????????????????????????????? | | ?????????????????????????????????????????? | +----------------------------------------------------+ Best States ------------- Heat Dissipation 28 Energy Generation 10 Energy Capacity 250 Matter Stores 300 Matter Capacity 300 Sight Range 16 Terrain Scan Density 10 Evasion (%) 63 Item Schematics ----------------- None Robot Schematics ------------------ None Fabricated ------------ Nothing Repaired ---------- Nothing Alien Tech Used ----------------- None Achievements -------------- None Challenges ------------ None Game ------ Seed SurveybotIonSpoofer Manual? 0 Play Time 00:10:18 Cumulative 49.3 hours Start 2025.08.03 @ 16:40:43 End 2025.08.03 @ 16:50:10 Sessions 1 Manual Loads 0 Difficulty Rogue Special Mode None Game No. 51 Rogue 47 Adventurer 4 Explorer 0 Win Type - Total 1 Types 1/0/0/0/0/0/0/0/0/0 Lore% 31 Gallery% 35 Achievement% 35 Wizard Run 0 Options --------- Layout 0 ASCII 0 Keyboard 1 Movement Numpad Keybinds 0 Fullscreen 2 Font 24/Smallcaps Map View 76x50 Zoom Use 0% Tactical HUD 1 Map Filters NONE Filters NONE Steam 1 RUN: e14c0489-0447-4b51-9bda-c3e310992f12